fUST/lending_fUST_20250127
["ID","MTS","AMOUNT","RATE_DAILY","PERIOD"]
[350516784,1737940240567,-500.0,0.00019315,2]
[350516786,1737940240577,-205.48825167,0.00019329,2]
[350516788,1737940240586,-302.8788636,0.0001938,2]
[350516790,1737940240595,-302.90913937,0.0001938,2]
[350516792,1737940240605,-300.0,0.000194,8]
[350516794,1737940240614,-632.71,0.00019452,2]
[350516796,1737940240624,-553.85601166,0.00019452,2]
[350516798,1737940240634,-151.0,0.000195,2]
[350516800,1737940240643,-205.48825167,0.00019507,2]
[350516802,1737940240652,-302.8788636,0.0001957,2]
[350516804,1737940240661,-302.90913937,0.0001957,2]
[350516806,1737940240673,-632.85999999,0.00019589,2]
[350516808,1737940240682,-151.0,0.000196,2]
[350516811,1737940240691,-205.48825167,0.00019686,2]
[350516813,1737940240701,-302.8788636,0.0001976,2]
[350516814,1737940240710,-302.90913937,0.0001976,2]
[350516815,1737940240720,-151.0,0.000198,2]
[350516816,1737940240729,-500.0,0.00019863,9]
[350516817,1737940240739,-205.48825167,0.00019864,2]
[350516818,1737940240748,-303.4239365,0.0001995,4]
[350516819,1737940240758,-454.36370906,0.0001995,4]
[350516820,1737940240770,-500.0,0.00019973,2]
[350516821,1737940240783,-500.0,0.00019973,2]
[350516822,1737940240792,-500.0,0.00019973,2]
[350516823,1737940240802,-500.0,0.00019973,2]
[350516824,1737940240812,-500.0,0.00019973,2]
[350516825,1737940240823,-500.0,0.00019973,2]
[350516826,1737940240833,-500.0,0.00019973,2]
[350516827,1737940240843,-500.0,0.00019986,2]
[350516828,1737940240852,-500.0,0.00019999,2]
[350516829,1737940240862,-55113.18584543,0.0002,2]
[350516830,1737940240877,-41032.2138134,0.0002,2]
[350516833,1737940240900,-300.0,0.00017808,2]
[350516852,1737940241068,-200.0,0.00017808,2]
[350516854,1737940241078,-100669.309996,0.0002,2]
[350516856,1737940241090,-18579.50956946,0.0002,2]
[350516858,1737940241103,-409.75397879,0.0002,2]
[350516860,1737940241115,-963.0,0.0002,2]
[350517123,1737940243481,-500.0,0.00017945,2]
[350517125,1737940243491,-198.39,0.00018082,2]
[350517127,1737940243501,-209614.38756299,0.0002,2]
[350517129,1737940243513,-536.2706573,0.0002,2]
[350517133,1737940243539,-17808.0,0.0002,2]
[350517135,1737940243551,-15354.53403311,0.0002,2]
[350517137,1737940243560,-484.69640241,0.0002,2]
[350517139,1737940243570,-3078.81885621,0.0002,2]
[350517141,1737940243580,-7017.0,0.0002,3]
[350517143,1737940243589,-1592.60804572,0.0002,3]
[350517145,1737940243605,-1915.39195428,0.0002,3]
[350517147,1737940243614,-3508.0,0.0002,3]
[350517149,1737940243624,-3508.0,0.0002,3]
[350517151,1737940243633,-3508.0,0.0002,3]
[350517154,1737940243642,-188.0,0.0002,2]
[350517156,1737940243652,-1500.0,0.0002,2]
[350517158,1737940243662,-1500.0,0.0002,2]
[350517160,1737940243674,-1500.0,0.0002,2]
[350517162,1737940243684,-1500.0,0.0002,2]
[350517164,1737940243693,-1500.0,0.0002,2]
[350517166,1737940243704,-1500.0,0.0002,2]
[350517168,1737940243714,-1500.0,0.0002,2]
[350517170,1737940243723,-1500.0,0.0002,2]
[350517173,1737940243733,-1500.0,0.0002,2]
[350517175,1737940243743,-1500.0,0.0002,2]
[350517176,1737940243753,-1500.0,0.0002,2]
[350517179,1737940243765,-1500.0,0.0002,2]
[350517181,1737940243776,-1500.0,0.0002,2]
[350517182,1737940243786,-1500.0,0.0002,2]
[350517185,1737940243797,-1500.0,0.0002,2]
[350517186,1737940243809,-1500.0,0.0002,2]
[350517188,1737940243825,-1500.0,0.0002,2]
[350517190,1737940243837,-1500.0,0.0002,2]
[350517192,1737940243848,-1500.0,0.0002,2]
[350517194,1737940243860,-1500.23064771,0.0002,2]
[350517196,1737940243871,-160.0,0.0002,2]
[350517198,1737940243882,-191.3246,0.0002,2]
[350517200,1737940243893,-352.00415,0.0002,2]
[350517202,1737940243903,-352.00415,0.0002,2]
[350517204,1737940243913,-151.0,0.0002,2]
[350517206,1737940243928,-151.0,0.0002,2]
[350517208,1737940243938,-5612.38,0.0002,2]
[350517210,1737940243948,-151.0,0.0002,2]
[350517212,1737940243959,-151.0,0.0002,2]
[350517214,1737940243969,-9200.23,0.0002,2]
[350517216,1737940243979,-151.0,0.0002,2]
[350517217,1737940243988,-6349.5982754,0.0002,2]
[350517220,1737940244001,-2031.0,0.0002,2]
[350517460,1737940246541,-14299.35665265,0.0002,2]
[350517462,1737940246556,-6845.04507195,0.0002,2]
[350517464,1737940246565,-151.4697106,0.0002,2]
[350517466,1737940246575,-167.0915,0.0002,2]
[350517468,1737940246584,-1000.0,0.0002,5]
[350517470,1737940246593,-150.0,0.0002,2]
[350517472,1737940246602,-160.0,0.0002,3]
[350517474,1737940246611,-150.05,0.0002,2]
[350517476,1737940246621,-500.0,0.0002,2]
[350517478,1737940246631,-150.05,0.0002,2]
[350517480,1737940246641,-150.05,0.0002,2]
[350517482,1737940246650,-1000.0,0.0002,2]
[350517484,1737940246660,-7458.15634357,0.0002,3]
[350517486,1737940246669,-205.48825167,0.00020043,2]
[350517489,1737940246679,-454.36370906,0.0002014,4]
[350517491,1737940246688,-205.48825167,0.00020221,2]
[350517493,1737940246698,-150.05,0.00020274,2]
[350517495,1737940246708,-748.00996551,0.00020274,2]
[350517497,1737940246717,-199.9,0.00020274,2]
[350517499,1737940246727,-500.0,0.00020274,2]
[350517501,1737940246735,-150.05,0.00020274,2]
[350517503,1737940246744,-454.36370906,0.0002033,4]
[350517505,1737940246753,-500.0,0.00020356,2]
[350517507,1737940246763,-205.48825167,0.000204,2]
[350517509,1737940246772,-454.36370906,0.0002052,4]
[350517511,1737940246782,-479.60310972,0.00020521,2]
[350517513,1737940246791,-1000.0,0.00020521,2]
[350517515,1737940246800,-1000.0,0.00020521,2]
[350517517,1737940246810,-1000.0,0.00020521,2]
[350517519,1737940246822,-1091.67557242,0.00020521,2]
[350517521,1737940246831,-1000.0,0.00020521,2]
[350517523,1737940246841,-443.5811248,0.00020521,2]
[350517525,1737940246853,-556.4188752,0.00020521,2]
[350517527,1737940246864,-1000.0,0.00020547,2]
[350517529,1737940246873,-1000.0,0.00020547,2]
[350517531,1737940246883,-1000.0,0.00020547,2]
[350517533,1737940246894,-1000.0,0.00020547,2]
[350517535,1737940246903,-303.08762509,0.00020547,2]
[350517537,1737940246913,-500.0,0.00020547,11]
[350517539,1737940246924,-199.9,0.00020548,2]
[350517541,1737940246934,-651.10495395,0.00020548,2]
[350517543,1737940246943,-205.48825167,0.00020579,2]
[350517545,1737940246953,-501.2325647,0.00020674,2]
[350517547,1737940246963,-587.09139742,0.0002071,4]
[350517549,1737940246972,-205.48825167,0.00020757,2]
[350517551,1737940246981,-23650.7743217,0.0002079,2]
[350517553,1737940246990,-350.75124751,0.000208,4]
[350517555,1737940247000,-395.0,0.00020895,2]
[350517557,1737940247009,-300.0,0.000209,9]
[350517559,1737940247019,-5000.0,0.00020911,2]
[350517561,1737940247029,-5000.0,0.00020911,2]
[350517563,1737940247038,-5000.0,0.00020911,2]
[350517565,1737940247047,-1403.93837219,0.00020911,2]
[350517567,1737940247059,-3596.06162781,0.00020911,2]
[350517569,1737940247068,-5000.0,0.00020911,2]
[350517571,1737940247077,-205.48825167,0.00020936,2]
[350517573,1737940247087,-1000.0,0.00021,21]
[350517575,1737940247096,-264.13518847,0.00021,2]
[350517577,1737940247106,-134.31493205,0.00021,3]
[350517580,1737940247117,-465.68506795,0.00021,3]
[350517582,1737940247126,-6020.39461979,0.00021,5]
[350517584,1737940247138,-3979.60538021,0.00021,5]
[350517586,1737940247147,-2614.46692947,0.00021,2]
[350518845,1737940573039,164.808052,0.00013973,2]
[350518852,1737940798583,520.383896,0.000152,2]
[350518854,1737941128105,200.0,0.000235,120]
[350518863,1737941174670,4823.46783328,0.00016,13]
[350518881,1737941400169,161.801409,0.00013973,2]
[350518903,1737941432902,-200.0,0.000152,7]
[350518905,1737941432911,-53.625,0.000152,8]
[350519024,1737941438642,-146.375,0.000152,8]
[350519025,1737941438651,-200.0,0.000152,7]
[350519028,1737941438661,-240.3224408,0.00015471,2]
[350519030,1737941438671,-200.0,0.000163,10]
[350519032,1737941438680,-200.0,0.000163,7]
[350519034,1737941438690,-160.11295281,0.00016338,2]
[350519036,1737941438698,-300.0,0.00016436,2]
[350519038,1737941438707,-162.79946272,0.00016437,2]
[350519040,1737941438716,-500.0,0.00016437,2]
[350519042,1737941438725,-500.0,0.00016437,2]
[350519044,1737941438735,-500.0,0.00016437,2]
[350519046,1737941438744,-500.0,0.00016437,2]
[350519048,1737941438753,-500.0,0.00016437,2]
[350519050,1737941438763,-500.0,0.00016437,2]
[350519052,1737941438771,-500.0,0.00016437,2]
[350519054,1737941438781,-500.0,0.00016437,2]
[350519056,1737941438789,-501.27853992,0.00016437,2]
[350519058,1737941438798,-500.0,0.00016437,2]
[350519060,1737941438807,-500.0,0.00016437,2]
[350519062,1737941438817,-500.0,0.00016437,2]
[350519064,1737941438826,-188.62892517,0.00016437,2]
[350519066,1737941438835,-500.0,0.00016437,2]
[350519068,1737941438845,-500.0,0.00016437,2]
[350519070,1737941438854,-500.0,0.00016437,2]
[350519072,1737941438863,-500.0,0.00016437,2]
[350519074,1737941438872,-154.24743876,0.00016437,2]
[350519076,1737941438881,-500.0,0.00016437,2]
[350519078,1737941438892,-500.0,0.00016437,2]
[350519080,1737941438901,-500.0,0.00016437,2]
[350519082,1737941438910,-500.0,0.00016437,2]
[350519083,1737941438919,-500.0,0.00016437,2]
[350519085,1737941438929,-500.0,0.00016437,2]
[350519087,1737941438939,-180.02613562,0.00016437,2]
[350519089,1737941438948,-238.12167764,0.00016437,2]
[350519091,1737941438957,-169.96158413,0.00016437,2]
[350519093,1737941438967,-622.59619855,0.00016438,2]
[350519095,1737941438976,-501.14549979,0.00016438,14]
[350519097,1737941438986,-500.0,0.00016438,2]
[350519099,1737941438996,-181.51291776,0.00016438,2]
[350519101,1737941439005,-500.0,0.00016438,2]
[350519103,1737941439015,-500.0,0.00016438,2]
[350519105,1737941439024,-500.0,0.00016438,2]
[350519107,1737941439033,-500.0,0.00016438,2]
[350519109,1737941439043,-500.0,0.00016438,2]
[350519111,1737941439052,-500.0,0.00016438,2]
[350519113,1737941439061,-500.0,0.00016438,2]
[350519115,1737941439070,-500.0,0.00016438,2]
[350519117,1737941439079,-500.87416683,0.00016438,2]
[350519119,1737941439089,-500.0,0.00016438,2]
[350519121,1737941439099,-500.0,0.00016438,2]
[350519123,1737941439108,-500.99369359,0.00016438,2]
[350519125,1737941439117,-500.0,0.00016438,2]
[350519127,1737941439127,-500.0,0.00016438,2]
[350519129,1737941439140,-500.0,0.00016438,2]
[350519131,1737941439149,-557.52407295,0.00016438,2]
[350519133,1737941439159,-500.0,0.00016438,2]
[350519135,1737941439169,-500.0,0.00016438,2]
[350519137,1737941439179,-500.0,0.00016438,2]
[350519139,1737941439193,-200.0,0.00016438,2]
[350519141,1737941439202,-500.0,0.00016438,2]
[350519143,1737941439212,-500.0,0.00016438,2]
[350519145,1737941439222,-500.0,0.00016438,2]
[350519147,1737941439232,-500.0,0.00016438,2]
[350519149,1737941439243,-500.0,0.00016438,2]
[350519151,1737941439253,-500.0,0.00016438,2]
[350519153,1737941439263,-500.0,0.00016438,2]
[350519155,1737941439273,-500.0,0.00016438,2]
[350519157,1737941439283,-255.16663841,0.00016438,2]
[350519170,1737941439397,-244.83336159,0.00016438,2]
[350519172,1737941439407,-500.0,0.00016438,2]
[350519174,1737941439416,-513.38143712,0.00016438,2]
[350519176,1737941439425,-500.0,0.00016438,2]
[350519178,1737941439434,-500.0,0.00016438,2]
[350519180,1737941439443,-500.0,0.00016438,2]
[350519182,1737941439453,-330.88100238,0.00016438,2]
[350519185,1737941439464,-169.11899762,0.00016438,2]
[350519187,1737941439473,-500.0,0.00016438,2]
[350519189,1737941439482,-500.0,0.00016438,2]
[350519191,1737941439491,-500.0,0.00016438,2]
[350519193,1737941439501,-500.0,0.00016438,2]
[350519195,1737941439510,-503.36662036,0.00016438,2]
[350519197,1737941439519,-535.77361152,0.00016438,2]
[350519199,1737941439528,-500.0,0.00016438,2]
[350519201,1737941439537,-500.0,0.00016438,2]
[350519203,1737941439546,-500.0,0.00016438,2]
[350519205,1737941439555,-150.54910115,0.00016438,2]
[350519207,1737941439567,-349.45089885,0.00016438,2]
[350519209,1737941439576,-312.12319096,0.00016438,2]
[350519211,1737941439585,-500.0,0.00016438,2]
[350519213,1737941439595,-500.0,0.00016438,2]
[350519215,1737941439606,-500.0,0.00016438,2]
[350519217,1737941439615,-500.0,0.00016438,2]
[350519219,1737941439624,-500.0,0.00016438,2]
[350519221,1737941439633,-500.0,0.00016438,2]
[350519223,1737941439646,-500.0,0.00016438,2]
[350519224,1737941439655,-500.0,0.00016438,2]
[350519226,1737941439664,-500.0,0.00016438,2]
[350519228,1737941439674,-318.61372628,0.00016438,2]
[350519230,1737941439683,-628.2335017,0.00016438,2]
[350519232,1737941439692,-263.13046196,0.00016438,2]
[350519234,1737941439701,-500.0,0.00016438,2]
[350519236,1737941439710,-500.0,0.00016438,2]
[350519238,1737941439719,-500.0,0.00016438,2]
[350519240,1737941439728,-500.0,0.00016438,2]
[350519243,1737941439737,-500.0,0.00016438,2]
[350519245,1737941439746,-500.0,0.00016438,2]
[350519247,1737941439755,-500.0,0.00016438,2]
[350519249,1737941439765,-500.0,0.00016438,2]
[350519251,1737941439774,-500.0,0.00016438,2]
[350519253,1737941439783,-500.0,0.00016438,2]
[350519255,1737941439792,-500.0,0.00016438,2]
[350519257,1737941439801,-500.0,0.00016438,2]
[350519259,1737941439810,-500.0,0.00016438,2]
[350519261,1737941439819,-41.25840562,0.00016438,2]
[350519263,1737941439832,-458.74159438,0.00016438,2]
[350519265,1737941439841,-500.0,0.00016438,2]
[350519267,1737941439851,-500.0,0.00016438,2]
[350519269,1737941439860,-500.0,0.00016438,2]
[350519271,1737941439870,-500.0,0.00016438,2]
[350519273,1737941439884,-500.0,0.00016438,2]
[350519275,1737941439895,-500.0,0.00016438,2]
[350519277,1737941439904,-500.0,0.00016438,2]
[350519278,1737941439913,-501.82912499,0.00016438,2]
[350519279,1737941439922,-500.0,0.00016438,2]
[350519280,1737941439931,-500.0,0.00016438,2]
[350519281,1737941439940,-500.0,0.00016438,2]
[350519282,1737941439949,-500.0,0.00016438,2]
[350519283,1737941439958,-500.0,0.00016438,2]
[350519284,1737941439967,-500.0,0.00016438,2]
[350519285,1737941439976,-500.0,0.00016438,2]
[350519286,1737941439985,-500.0,0.00016438,2]
[350519287,1737941439994,-500.0,0.00016438,2]
[350519288,1737941440003,-500.0,0.00016438,2]
[350519289,1737941440012,-500.0,0.00016438,2]
[350519290,1737941440022,-500.0,0.00016438,2]
[350519291,1737941440031,-500.0,0.00016438,2]
[350519292,1737941440042,-500.0,0.00016438,2]
[350519293,1737941440051,-500.0,0.00016438,2]
[350519295,1737941440059,-500.0,0.00016438,2]
[350519297,1737941440068,-500.0,0.00016438,2]
[350519298,1737941440077,-500.0,0.00016438,2]
[350519300,1737941440086,-500.0,0.00016438,2]
[350519302,1737941440095,-500.0,0.00016438,2]
[350519304,1737941440103,-500.0,0.00016438,2]
[350519306,1737941440112,-500.0,0.00016438,2]
[350519308,1737941440121,-500.0,0.00016438,2]
[350519311,1737941440130,-500.0,0.00016438,2]
[350519313,1737941440140,-644.53,0.00016438,2]
[350519314,1737941440149,-500.0,0.00016438,2]
[350519316,1737941440158,-500.0,0.00016438,2]
[350519318,1737941440167,-516.68,0.00016438,2]
[350519320,1737941440176,-500.0,0.00016438,2]
[350519322,1737941440185,-500.0,0.00016438,2]
[350519324,1737941440197,-500.0,0.00016438,2]
[350519328,1737941440206,-500.0,0.00016438,2]
[350519332,1737941440216,-500.0,0.00016438,2]
[350519334,1737941440225,-500.0,0.00016438,2]
[350519337,1737941440234,-500.0,0.00016438,2]
[350519339,1737941440244,-500.0,0.00016438,2]
[350519341,1737941440253,-500.0,0.00016438,2]
[350519343,1737941440262,-500.0,0.00016438,2]
[350519345,1737941440272,-500.0,0.00016438,2]
[350519347,1737941440281,-500.0,0.00016438,2]
[350519349,1737941440290,-500.0,0.00016438,2]
[350519351,1737941440299,-500.0,0.00016438,2]
[350519353,1737941440308,-500.0,0.00016438,2]
[350519355,1737941440317,-500.0,0.00016438,2]
[350519357,1737941440326,-500.0,0.00016438,2]
[350519359,1737941440335,-500.0,0.00016438,2]
[350519361,1737941440343,-500.0,0.00016438,2]
[350519363,1737941440352,-432.32692683,0.00016438,2]
[350519365,1737941440361,-500.0,0.00016438,2]
[350519367,1737941440370,-500.0,0.00016438,2]
[350519369,1737941440379,-500.0,0.00016438,2]
[350519371,1737941440391,-500.0,0.00016438,2]
[350519373,1737941440399,-500.0,0.00016438,2]
[350519375,1737941440408,-500.0,0.00016438,2]
[350519377,1737941440417,-500.0,0.00016438,2]
[350519379,1737941440426,-500.0,0.00016438,2]
[350519381,1737941440435,-500.0,0.00016438,2]
[350519383,1737941440444,-500.0,0.00016438,2]
[350519385,1737941440454,-500.0,0.00016438,2]
[350519387,1737941440463,-500.0,0.00016438,2]
[350519389,1737941440472,-500.0,0.00016438,2]
[350519391,1737941440481,-500.0,0.00016438,2]
[350519393,1737941440491,-500.0,0.00016438,2]
[350519395,1737941440500,-500.0,0.00016438,2]
[350519397,1737941440509,-500.0,0.00016438,2]
[350519399,1737941440519,-500.0,0.00016438,2]
[350519401,1737941440528,-500.0,0.00016438,2]
[350519403,1737941440537,-500.0,0.00016438,2]
[350519405,1737941440547,-500.0,0.00016438,2]
[350519407,1737941440556,-500.0,0.00016438,2]
[350519409,1737941440566,-500.0,0.00016438,2]
[350519411,1737941440575,-500.0,0.00016438,2]
[350519413,1737941440585,-500.0,0.00016438,2]
[350519415,1737941440594,-500.0,0.00016438,2]
[350519417,1737941440604,-508.45,0.00016438,2]
[350519432,1737941440712,-461.72513783,0.00016438,2]
[350519434,1737941440746,-500.0,0.00016438,2]
[350519436,1737941440755,-500.0,0.00016438,2]
[350519438,1737941440765,-218.35203546,0.00016438,2]
[350519440,1737941440774,-500.0,0.00016438,2]
[350519442,1737941440783,-500.0,0.00016438,2]
[350519443,1737941440793,-500.0,0.00016438,2]
[350519444,1737941440803,-500.0,0.00016438,2]
[350519445,1737941440813,-500.0,0.00016438,2]
[350519446,1737941440823,-500.0,0.00016438,2]
[350519447,1737941440832,-500.0,0.00016438,2]
[350519448,1737941440842,-500.0,0.00016438,2]
[350519450,1737941440851,-500.0,0.00016438,2]
[350519452,1737941440860,-281.3893122,0.00016438,2]
[350519454,1737941440870,-500.0,0.00016438,2]
[350519456,1737941440880,-500.0,0.00016438,2]
[350519458,1737941440893,-500.0,0.00016438,2]
[350519459,1737941440902,-500.0,0.00016438,2]
[350519461,1737941440912,-500.0,0.00016438,2]
[350519463,1737941440922,-500.0,0.00016438,2]
[350519465,1737941440931,-500.0,0.00016438,2]
[350519466,1737941440940,-500.0,0.00016438,2]
[350519468,1737941440950,-500.0,0.00016438,2]
[350519470,1737941440959,-500.0,0.00016438,2]
[350519472,1737941440968,-500.0,0.00016438,2]
[350519473,1737941440977,-500.0,0.00016438,2]
[350519475,1737941440987,-500.0,0.00016438,2]
[350519477,1737941440996,-500.0,0.00016438,2]
[350519479,1737941441006,-520.87,0.00016438,2]
[350519481,1737941441015,-500.0,0.00016438,2]
[350519482,1737941441024,-500.0,0.00016438,2]
[350519483,1737941441033,-500.0,0.00016438,2]
[350519484,1737941441043,-500.0,0.00016438,2]
[350519485,1737941441052,-500.0,0.00016438,2]
[350519486,1737941441062,-500.0,0.00016438,2]
[350519487,1737941441071,-500.0,0.00016438,2]
[350519489,1737941441080,-556.26064698,0.00016438,2]
[350519491,1737941441090,-500.0,0.00016438,2]
[350519493,1737941441099,-500.0,0.00016438,2]
[350519495,1737941441109,-500.0,0.00016438,2]
[350519497,1737941441118,-502.75232034,0.00016438,2]
[350519498,1737941441128,-518.08780755,0.00016438,2]
[350519500,1737941441139,-500.0,0.00016438,2]
[350519502,1737941441151,-500.0,0.00016438,2]
[350519504,1737941441160,-500.0,0.00016438,2]
[350519505,1737941441171,-531.66010339,0.00016438,2]
[350519507,1737941441185,-500.0,0.00016438,2]
[350519509,1737941441194,-208.54312881,0.00016438,2]
[350519511,1737941441203,-500.0,0.00016438,2]
[350519513,1737941441213,-500.0,0.00016438,2]
[350519514,1737941441222,-500.0,0.00016438,2]
[350519516,1737941441232,-500.0,0.00016438,2]
[350519518,1737941441241,-500.0,0.00016438,2]
[350519519,1737941441250,-500.0,0.00016438,2]
[350519520,1737941441260,-500.0,0.00016438,2]
[350519521,1737941441271,-500.0,0.00016438,2]
[350519522,1737941441280,-500.0,0.00016438,2]
[350519523,1737941441289,-500.0,0.00016438,2]
[350519524,1737941441299,-500.0,0.00016438,2]
[350519525,1737941441308,-501.94033345,0.00016438,2]
[350519526,1737941441317,-500.0,0.00016438,2]
[350519527,1737941441327,-500.0,0.00016438,2]
[350519528,1737941441336,-500.0,0.00016438,2]
[350519529,1737941441345,-500.0,0.00016438,2]
[350519530,1737941441354,-500.0,0.00016438,2]
[350519531,1737941441363,-500.0,0.00016438,2]
[350519532,1737941441373,-574.36,0.00016438,2]
[350519533,1737941441383,-500.0,0.00016438,2]
[350519534,1737941441394,-524.4,0.00016438,2]
[350519535,1737941441403,-523.57,0.00016438,2]
[350519536,1737941441413,-500.0,0.00016438,2]
[350519537,1737941441422,-500.0,0.00016438,2]
[350519538,1737941441431,-500.0,0.00016438,2]
[350519539,1737941441440,-500.0,0.00016438,2]
[350519540,1737941441450,-500.0,0.00016438,2]
[350519541,1737941441459,-500.0,0.00016438,2]
[350519542,1737941441468,-500.0,0.00016438,2]
[350519543,1737941441477,-500.0,0.00016438,2]
[350519544,1737941441486,-500.0,0.00016438,2]
[350519545,1737941441495,-500.0,0.00016438,2]
[350519546,1737941441507,-500.0,0.00016438,2]
[350519547,1737941441516,-500.0,0.00016438,2]
[350519548,1737941441525,-500.0,0.00016438,2]
[350519549,1737941441534,-500.0,0.00016438,2]
[350519550,1737941441543,-500.0,0.00016438,2]
[350519551,1737941441552,-622.01731658,0.00016438,2]
[350519552,1737941441561,-500.0,0.00016438,2]
[350519553,1737941441570,-500.0,0.00016438,2]
[350519554,1737941441579,-500.0,0.00016438,2]
[350519555,1737941441589,-245.38926407,0.00016438,2]
[350519556,1737941441599,-500.0,0.00016438,2]
[350519557,1737941441608,-500.0,0.00016438,2]
[350519558,1737941441617,-219.00676525,0.00016438,2]
[350519559,1737941441626,-500.0,0.00016438,2]
[350519560,1737941441635,-500.0,0.00016438,2]
[350519561,1737941441645,-500.0,0.00016438,2]
[350519562,1737941441655,-1760.96,0.00016438,2]
[350519563,1737941441664,-500.0,0.00016438,2]
[350519564,1737941441674,-500.0,0.00016438,2]
[350519565,1737941441684,-4925.54,0.00016438,2]
[350519566,1737941441693,-80.71649052,0.00016438,2]
[350519567,1737941441711,-419.28350948,0.00016438,2]
[350519568,1737941441721,-500.0,0.00016438,2]
[350519569,1737941441730,-500.0,0.00016438,2]
[350519570,1737941441739,-500.0,0.00016438,2]
[350519571,1737941441749,-500.0,0.00016438,2]
[350519572,1737941441759,-500.0,0.00016438,2]
[350519573,1737941441768,-500.0,0.00016438,2]
[350519574,1737941441777,-500.0,0.00016438,2]
[350519575,1737941441786,-500.0,0.00016438,2]
[350519576,1737941441795,-500.0,0.00016438,2]
[350519577,1737941441805,-500.0,0.00016438,2]
[350519578,1737941441814,-500.0,0.00016438,2]
[350519579,1737941441825,-500.0,0.00016438,2]
[350519580,1737941441835,-505.55887025,0.00016438,2]
[350519581,1737941441844,-500.0,0.00016438,2]
[350519582,1737941441853,-500.0,0.00016438,2]
[350519584,1737941441862,-500.0,0.00016438,2]
[350519586,1737941441871,-500.0,0.00016438,2]
[350519588,1737941441881,-500.0,0.00016438,2]
[350519590,1737941441891,-500.0,0.00016438,2]
[350519591,1737941441900,-500.0,0.00016438,2]
[350519593,1737941441910,-500.0,0.00016438,2]
[350519595,1737941441919,-553.32596473,0.00016438,2]
[350519597,1737941441929,-500.0,0.00016438,2]
[350519598,1737941441938,-500.0,0.00016438,2]
[350519599,1737941441948,-500.0,0.00016438,2]
[350519600,1737941441956,-587.11,0.00016438,2]
[350519601,1737941441966,-500.0,0.00016438,2]
[350519602,1737941441975,-500.0,0.00016438,2]
[350519603,1737941441985,-500.0,0.00016438,2]
[350519604,1737941441995,-500.0,0.00016438,2]
[350519605,1737941442004,-500.0,0.00016438,2]
[350519606,1737941442014,-500.0,0.00016438,2]
[350519607,1737941442025,-500.0,0.00016438,2]
[350519608,1737941442035,-606.88042374,0.00016438,2]
[350519609,1737941442044,-500.0,0.00016438,2]
[350519610,1737941442054,-500.0,0.00016438,2]
[350519611,1737941442063,-500.0,0.00016438,2]
[350519612,1737941442072,-500.0,0.00016438,2]
[350519613,1737941442082,-500.0,0.00016438,2]
[350519614,1737941442091,-500.0,0.00016438,2]
[350519615,1737941442102,-500.0,0.00016438,2]
[350519616,1737941442111,-500.0,0.00016438,2]
[350519617,1737941442121,-500.0,0.00016438,2]
[350519618,1737941442131,-388.97937016,0.00016438,2]